bitfinex/quotes_SOLUSD_20240624
["timestamp","ask_amount","ask_price","bid_price","bid_amount"]
[1719202602094,1.59029692,126.26,126.19,8.0943]
[1719202602397,1.59029692,126.26,126.17,0.17]
[1719202602699,1.59029692,126.26,126.18,7.9246]
[1719202604491,1.59029692,126.26,126.19,7.9245]
[1719202605491,1.59029692,126.26,126.2,7.9237]
[1719202605991,1.59029692,126.26,126.19,8.0942]
[1719202606180,1.59029692,126.26,126.19,7.9242]
[1719202607007,15.1417,126.25,126.16,7.9261]
[1719202607308,1.59029692,126.24,126.16,7.9261]
[1719202607595,1.59029692,126.24,126.17,7.9257]
[1719202609479,1.59029692,126.24,126.16,8.2661]
[1719202610708,1.59029692,126.24,126.16,0.34]
[1719202611209,22.21,126.18,126.05,100.0]
[1719202611404,8.08029692,126.17,126.05,7.9331]
[1719202611634,8.08029692,126.17,126.07,7.9316]
[1719202611635,7.91029692,126.17,126.07,7.9316]
[1719202611909,0.34,126.16,126.07,7.9316]
[1719202612115,1.59029692,126.15,126.07,7.9316]
[1719202612483,8.6517,126.14,126.07,7.9316]
[1719202612706,8.6517,126.14,126.09,7.9306]
[1719202612922,8.6517,126.14,126.05,119.8331]
[1719202612923,8.6517,126.14,126.08,7.931]
[1719202613330,14.9717,126.17,126.07,116.5722]
[1719202613629,14.9717,126.17,126.12,7.9284]
[1719202613835,14.9717,126.17,126.12,7.9288]
[1719202614829,14.9717,126.17,126.13,0.34]
[1719202616135,14.9717,126.2,126.15,7.9269]
[1719202616342,14.9717,126.2,126.14,7.9275]
[1719202616515,14.9717,126.2,126.15,0.34]
[1719202616716,14.9717,126.2,126.15,8.267]
[1719202617644,7.91029692,126.26,126.19,7.9243]
[1719202617823,7.91029692,126.26,126.16,7.9262]
[1719202618027,7.91029692,126.26,126.17,0.34]
[1719202618639,7.91029692,126.26,126.17,8.2657]
[1719202618844,8.6517,126.27,126.17,200.34]
[1719202619008,8.6517,126.27,126.18,19.8115]
[1719202619208,8.6517,126.27,126.21,7.9229]
[1719202619515,8.6517,126.27,126.22,0.34]
[1719202619722,8.6517,126.27,126.22,8.2625]
[1719202619909,2.41747082,126.33,126.22,200.34]
[1719202620113,0.8271739,126.33,126.26,7.92]
[1719202620533,1.59029692,126.32,126.21,6.5614]
[1719202620728,1.59029692,126.32,126.2,100.0]
[1719202620729,1.59029692,126.32,126.22,0.34]
[1719202620959,1.59029692,126.32,126.24,7.9213]
[1719202621158,1.59029692,126.32,126.25,0.17]
[1719202621538,0.8271739,126.33,126.25,0.17]
[1719202622048,0.8271739,126.33,126.25,8.0903]
[1719202622346,0.8271739,126.33,126.26,0.17]
[1719202623059,0.8271739,126.33,126.25,0.34]
[1719202623359,0.8271739,126.33,126.25,8.0904]
[1719202623660,0.8271739,126.33,126.26,0.17]
[1719202624366,0.8271739,126.33,126.25,8.2607]
[1719202626757,0.8271739,126.33,126.25,0.34]
[1719202626967,0.8271739,126.33,126.25,7.9203]
[1719202627144,0.8271739,126.33,126.26,0.34]
[1719202627466,0.8271739,126.33,126.26,8.26]
[1719202628546,0.8271739,126.33,126.26,0.34]
[1719202629057,0.8271739,126.33,126.25,8.2606]
[1719202629266,0.8271739,126.33,126.25,0.17]
[1719202630657,0.8271739,126.33,126.25,0.34]
[1719202631358,0.8271739,126.33,126.25,8.2605]
[1719202632251,0.8271739,126.33,126.26,7.92]
[1719202632448,0.8271739,126.33,126.27,0.34]
[1719202633561,0.8271739,126.33,126.26,0.34]
[1719202635163,0.8271739,126.33,126.26,8.26]
[1719202636765,0.8271739,126.33,126.27,7.9193]
[1719202636964,0.8271739,126.33,126.28,0.17]
[1719202637546,0.8271739,126.33,126.27,0.17]
[1719202639668,0.8271739,126.33,126.27,8.0894]
[1719202640162,0.8271739,126.33,126.27,0.17]
[1719202640369,0.8271739,126.33,126.27,119.9674]
[1719202640664,0.8271739,126.33,126.28,19.966]
[1719202640862,0.8271739,126.33,126.3,7.9173]
[1719202642563,0.8271739,126.33,126.31,0.34]
[1719202644646,0.8271739,126.33,126.32,0.17]
[1719202644849,0.8271739,126.33,126.3,0.34]
[1719202645073,0.8271739,126.33,126.32,7.9164]
[1719202645243,0.8271739,126.33,126.32,8.2564]
[1719202645645,0.8271739,126.33,126.32,0.34]
[1719202646479,0.8271739,126.33,126.29,7.918]
[1719202646646,0.8271739,126.33,126.29,7.9178]
[1719202646843,0.8271739,126.33,126.3,7.9173]
[1719202647285,0.8271739,126.33,126.28,167.5261]
[1719202647454,0.8271739,126.33,126.3,7.9172]
[1719202647655,0.8271739,126.33,126.31,0.17]
[1719202647958,0.8271739,126.33,126.31,8.2569]
[1719202648757,0.8271739,126.33,126.32,7.9164]
[1719202648960,0.8271739,126.33,126.32,8.2564]
[1719202650682,0.8271739,126.33,126.32,0.34]
[1719202651179,0.8271739,126.33,126.25,167.4116]
[1719202651382,0.8271739,126.33,126.27,7.9192]
[1719202651698,0.8271739,126.33,126.25,167.4116]
[1719202651851,0.8271739,126.33,126.3,7.9173]
[1719202652254,0.8271739,126.33,126.29,7.918]
[1719202652473,0.8271739,126.33,126.28,7.9186]
[1719202652753,0.8271739,126.33,126.29,8.0882]
[1719202652952,0.8271739,126.33,126.28,7.9186]
[1719202653179,0.8271739,126.33,126.29,7.9182]
[1719202653383,0.8271739,126.33,126.3,7.9176]
[1719202653676,0.8271739,126.33,126.31,7.9167]
[1719202654257,0.8271739,126.33,126.32,8.2564]
[1719202654447,0.8271739,126.33,126.32,0.34]
[1719202654654,0.8271739,126.33,126.3,7.9173]
[1719202654868,0.8271739,126.33,126.29,8.2579]
[1719202655676,0.8271739,126.33,126.3,7.9175]
[1719202655976,0.8271739,126.33,126.31,0.34]
[1719202656177,0.8271739,126.33,126.32,8.0864]
[1719202656683,0.8271739,126.33,126.32,8.2564]
[1719202663283,10.0,126.45,126.32,8.2564]
[1719202663284,14.7501,126.43,126.33,100.0]
[1719202663465,14.7501,126.43,126.36,7.9135]
[1719202663665,14.7501,126.43,126.37,8.2532]
[1719202663869,14.7501,126.43,126.37,8.0832]
[1719202665279,14.7501,126.43,126.39,7.9115]
[1719202665673,14.7501,126.43,126.38,8.0823]
[1719202666791,14.7501,126.43,126.38,0.17]
[1719202666974,14.7501,126.43,126.37,0.17]
[1719202667175,14.7501,126.43,126.37,0.34]
[1719202667793,16.34039692,126.43,126.37,0.17]
[1719202668203,14.7501,126.43,126.37,8.083]
[1719202669277,14.7501,126.43,126.38,8.0822]
[1719202669473,14.7501,126.43,126.38,7.9122]
[1719202669783,14.7501,126.43,126.39,7.9119]
[1719202670497,14.7501,126.43,126.37,0.17]
[1719202670703,14.7501,126.43,126.37,7.9129]
[1719202670900,14.7501,126.43,126.38,8.2525]
[1719202671084,14.7501,126.43,126.38,8.0825]
[1719202673106,19.0,126.39,126.33,100.0]
[1719202673279,0.8271739,126.46,126.08,39.55757519]
[1719202673280,48.0,126.34,126.14,6.3939]
[1719202673594,7.9252,126.18,126.16,30.0]
[1719202673792,19.0,126.2,126.1,115.0011]
[1719202673979,7.9271,126.15,126.09,6.3939]
[1719202674187,7.9278,126.14,126.05,134.833]
[1719202674490,7.9283,126.13,126.07,7.9319]
[1719202674884,7.9289,126.12,126.07,7.9319]
[1719202675080,7.9303,126.1,126.04,7.9335]
[1719202676100,7.9303,126.1,126.03,106.0903]
[1719202676101,7.9303,126.1,126.05,7.9333]
[1719202676597,7.9303,126.1,126.03,114.0243]
[1719202676804,1.59029692,126.14,126.01,108.7626739]
[1719202676971,1.59029692,126.14,126.03,7.9345]
[1719202677497,7.9314,126.08,126.01,108.7623739]
[1719202677681,1.59029692,126.14,126.03,7.9345]
[1719202678503,7.9312,126.09,126.03,7.9345]
[1719202678876,1.59029692,126.14,126.04,7.9339]
[1719202679293,7.9309,126.09,126.03,7.9344]
[1719202679497,7.9309,126.09,126.04,7.9339]
[1719202680001,7.9303,126.1,126.05,7.9332]
[1719202680199,7.931,126.09,126.03,7.9344]
[1719202680401,7.931,126.09,126.04,7.9338]
[1719202680805,7.931,126.09,126.05,0.17]
[1719202681305,7.931,126.09,126.05,0.34]
[1719202682104,7.9318,126.08,126.04,0.34]
[1719202682306,7.931,126.09,126.03,8.2744]
[1719202682481,22.24,126.12,126.03,8.2744]
[1719202682904,1.59029692,126.11,126.03,8.2744]
[1719202683116,7.9318,126.08,126.03,8.2744]
[1719202683621,7.9312,126.09,126.03,8.2744]
[1719202683905,7.9309,126.09,126.03,0.34]
[1719202684077,7.9315,126.08,126.03,107.9341]
[1719202684277,7.9315,126.08,126.04,0.34]
[1719202684507,22.24,126.12,126.06,7.9322]
[1719202684714,7.9305,126.1,126.05,7.9331]
[1719202684882,7.935,126.03,126.01,0.8271739]
[1719202685220,7.9352,126.02,126.01,0.8271739]
[1719202685401,9.52549692,126.02,126.01,0.8271739]
[1719202685716,7.9397,125.95,125.89,130.2722739]
[1719202685906,7.9395,125.96,125.9,7.9427]
[1719202686199,7.9401,125.95,125.9,7.9427]
[1719202686400,7.9402,125.94,125.89,130.2721739]
[1719202687175,22.24,126.0,125.92,100.0]
[1719202687396,22.24,126.0,125.9,100.0]
[1719202687581,7.9394,125.96,125.91,7.9421]
[1719202687990,22.24,126.0,125.92,0.17]
[1719202688395,22.24,126.0,125.9,100.0]
[1719202688705,22.24,126.0,125.9,107.9426]
[1719202689511,22.24,126.0,125.9,100.0]
[1719202690014,22.24,126.0,125.9,107.9427]
[1719202690317,1.59029692,125.99,125.91,0.17]
[1719202690989,1.59029692,125.99,125.9,0.17]
[1719202691214,7.9409,125.93,125.9,0.17]
[1719202691512,7.9405,125.94,125.9,0.17]
[1719202691918,1.59029692,125.99,125.9,100.17]
[1719202692089,7.9396,125.95,125.91,0.17]
[1719202692288,23.83029692,126.0,125.91,0.17]
[1719202692607,22.24,126.0,125.91,8.1121]
[1719202692816,7.9394,125.96,125.92,0.17]
[1719202693288,23.83029692,126.0,125.92,0.17]
[1719202693490,1.59029692,125.99,125.92,0.17]
[1719202693689,7.9425,125.91,125.89,0.8271739]
[1719202693895,7.9417,125.92,125.89,0.8271739]
[1719202694208,7.9423,125.91,125.89,0.8271739]
[1719202694982,7.9423,125.91,125.89,0.6560059]
[1719202695393,7.9428,125.9,125.89,0.6560059]
[1719202697907,22.24,125.96,125.89,0.6560059]
[1719202698209,7.9425,125.91,125.89,0.6560059]
[1719202699098,7.9416,125.92,125.89,0.6560059]
[1719202699527,22.24,125.96,125.89,0.6560059]
[1719202699735,1.59029692,125.98,125.9,0.34]
[1719202699931,7.9409,125.93,125.9,0.34]
[1719202700135,7.9403,125.94,125.9,0.34]
[1719202700340,7.9399,125.95,125.9,8.2827]
[1719202700639,7.91029692,125.99,125.9,8.2825]
[1719202700932,7.9399,125.95,125.9,8.2827]
[1719202701348,22.24,126.0,125.9,100.34]
[1719202701507,7.9381,125.98,125.93,7.9407]
[1719202701837,7.9381,125.98,125.94,0.34]
[1719202702534,7.9369,126.0,125.95,7.9394]
[1719202702712,1.59029692,126.05,125.96,0.34]
[1719202703053,22.24,126.06,125.97,8.1078]
[1719202703054,7.9353,126.02,125.97,8.1078]
[1719202703263,7.9362,126.01,125.98,0.17]
[1719202703423,7.935,126.03,125.98,8.1073]
[1719202703621,7.935,126.03,125.99,0.17]
[1719202703822,7.9337,126.05,126.0,7.9361]
[1719202704128,1.59029692,126.08,126.01,0.34]
[1719202704343,1.59029692,126.11,126.02,0.17]
[1719202704526,1.59029692,126.11,126.01,0.17]
[1719202704852,1.59029692,126.11,126.0,0.17]
[1719202705054,7.9342,126.04,126.0,0.17]
[1719202706044,7.9349,126.03,126.0,0.17]
[1719202706232,22.24,126.08,125.99,0.34]
[1719202706440,1.59029692,126.07,125.99,0.34]
[1719202706629,22.24,126.08,125.99,0.34]
[1719202706950,7.9341,126.04,125.99,8.2769]
[1719202707140,7.9334,126.05,126.0,7.9364]
[1719202707450,7.934,126.04,126.01,0.34]
[1719202708134,7.934,126.04,126.0,0.34]
[1719202709039,7.9335,126.05,126.0,8.2764]
[1719202709229,7.9335,126.05,126.01,7.9357]
[1719202709566,7.9335,126.05,126.0,8.2762]
[1719202709728,1.59029692,126.11,126.02,0.17]
[1719202709932,7.9335,126.05,126.02,0.34]
[1719202710335,7.9352,126.03,125.97,6.1617]
[1719202710550,7.9341,126.04,125.97,6.1617]
[1719202710758,7.9341,126.04,125.98,100.0]
[1719202710950,7.9347,126.03,125.99,7.9368]
[1719202711533,7.934,126.04,126.0,7.9363]
[1719202711749,7.9346,126.03,125.98,7.9375]
[1719202711955,7.9342,126.04,125.99,7.9371]
[1719202712138,7.9342,126.04,126.0,0.34]
[1719202712452,7.934,126.04,126.0,0.34]
[1719202715365,7.9336,126.05,126.0,8.2762]
[1719202716043,1.59029692,126.07,126.0,0.34]
[1719202716247,7.9343,126.04,126.01,0.17]
[1719202716639,1.59029692,126.07,126.01,0.17]
[1719202716840,7.9341,126.04,125.99,8.2769]
[1719202717563,7.9335,126.05,125.99,0.34]
[1719202717747,7.9335,126.05,126.0,7.9362]
[1719202717947,7.9335,126.05,126.01,0.34]
[1719202718249,1.59029692,126.11,126.02,7.9348]
[1719202718448,1.59029692,126.11,126.03,0.17]
[1719202718655,7.9325,126.07,126.03,0.34]
[1719202719252,7.9327,126.07,126.03,0.34]
[1719202720261,7.9327,126.07,126.03,8.2745]
[1719202720961,7.9327,126.07,126.03,0.34]
[1719202721269,7.9317,126.08,126.03,8.2746]
[1719202721568,1.59029692,126.11,126.04,7.9335]
[1719202722370,7.931,126.09,126.05,0.17]
[1719202722566,7.931,126.09,126.05,0.34]
[1719202722760,7.931,126.09,126.01,19.8385]
[1719202723431,7.931,126.09,126.02,100.0]
[1719202723631,7.931,126.09,126.04,7.9334]
[1719202724962,7.931,126.09,126.03,0.17]
[1719202725147,7.931,126.09,126.03,0.34]
[1719202725550,7.931,126.09,126.04,7.9336]
[1719202725755,7.9314,126.08,126.04,7.9336]
[1719202727669,7.9311,126.09,126.04,7.9336]
[1719202728356,7.9311,126.09,126.05,8.1032]
[1719202728558,27.0103,126.1,126.05,7.9332]
[1719202728757,7.9305,126.1,126.06,0.17]
[1719202729300,7.931,126.09,126.06,0.17]
[1719202729579,38.9027,126.12,126.05,0.34]
[1719202729580,7.9317,126.08,126.05,0.34]
[1719202730271,7.9311,126.09,126.05,0.34]
[1719202730656,7.9311,126.09,126.05,8.2731]
[1719202731349,7.9307,126.1,126.05,8.2731]
[1719202732163,38.9027,126.12,126.05,8.2731]
[1719202732164,7.9296,126.11,126.05,100.34]
[1719202732476,7.929,126.12,126.08,7.9314]
[1719202732679,19.08,126.14,126.09,8.1006]
[1719202732883,7.9287,126.13,126.09,0.17]
[1719202734468,7.929,126.12,126.09,0.17]
[1719202735501,7.9309,126.09,126.05,7.933]
[1719202735803,7.9319,126.08,126.03,7.9342]
[1719202736290,7.9316,126.08,126.03,7.9342]
[1719202736665,7.9311,126.09,126.04,14.3236]
[1719202737071,7.9314,126.08,126.04,6.3898]
[1719202737267,38.9067,126.1,126.04,6.3898]
[1719202737666,7.9318,126.08,126.04,6.3898]
[1719202737878,7.9311,126.09,126.04,14.3237]
[1719202738281,7.9311,126.09,126.05,0.34]
[1719202738687,7.9316,126.08,126.05,0.34]
[1719202738995,7.9316,126.08,126.04,14.3234]
[1719202739196,7.9316,126.08,126.04,6.3898]
[1719202739490,19.08,126.08,126.0,6.3692]
[1719202739705,7.9343,126.04,126.0,6.3692]
[1719202740005,27.0136,126.05,126.0,14.3054]
[1719202740304,19.08,126.05,125.96,6.0284]
[1719202740468,7.9369,126.0,125.96,6.0284]
[1719202740676,27.0161,126.01,125.96,6.0284]
[1719202741107,19.08,126.01,125.97,7.9383]
[1719202741396,7.9355,126.02,125.98,7.9376]
[1719202741809,19.08,126.03,125.96,6.0284]
[1719202741964,19.08,126.03,125.94,15.0795]
[1719202741965,19.08,126.01,125.94,15.0795]
[1719202742281,19.08,126.01,125.9,100.0]
[1719202742282,7.9394,125.96,125.91,7.9419]
[1719202742475,19.08,125.95,125.91,7.9419]
[1719202742680,19.08,125.95,125.9,24.2091]
[1719202742681,7.9397,125.95,125.9,24.2091]
[1719202742879,1.59029692,125.98,125.89,7.1803059]
[1719202743178,7.9413,125.93,125.89,0.6560059]
[1719202743379,7.9415,125.92,125.89,0.6560059]
[1719202743781,7.9411,125.93,125.89,0.6560059]
[1719202743983,19.8507,125.94,125.89,0.6560059]
[1719202744276,7.941,125.93,125.89,0.6560059]
[1719202745086,7.942,125.92,125.89,0.6560059]
[1719202745697,1.59029692,125.95,125.89,0.6560059]
[1719202745904,42.1591,125.96,125.89,0.6560059]
[1719202746093,1.59029692,125.95,125.89,0.6560059]
[1719202746275,19.8511,125.94,125.89,0.6560059]
[1719202746479,7.9428,125.9,125.89,0.6560059]
[1719202747094,27.7998,125.9,125.89,0.6560059]
[1719202747797,29.39009692,125.9,125.89,0.6560059]
[1719202747993,27.7998,125.9,125.89,0.6560059]
[1719202750578,7.9428,125.9,125.89,0.6560059]
[1719202750782,9.53309692,125.9,125.89,0.6560059]
[1719202750989,7.9428,125.9,125.89,0.6560059]
[1719202754396,7.9419,125.92,125.89,0.6560059]
[1719202754784,21.44249692,125.94,125.89,0.6560059]
[1719202754992,7.9428,125.9,125.89,0.6560059]
[1719202756836,7.9423,125.91,125.89,0.6560059]
[1719202757310,22.31,125.96,125.89,0.6560059]
[1719202757609,7.9413,125.93,125.89,0.6560059]
[1719202758213,19.8494,125.95,125.89,0.6560059]
[1719202758712,7.9411,125.93,125.89,0.6560059]
[1719202759908,1.59029692,125.98,125.89,7.0207059]
[1719202760210,6.32,125.99,125.9,8.2825]
[1719202760211,7.94,125.95,125.9,8.2825]
[1719202760716,7.9394,125.96,125.91,7.9419]
[1719202760893,7.9398,125.95,125.9,8.2825]
[1719202761408,19.8496,125.95,125.89,0.6560059]
[1719202761610,7.9426,125.91,125.89,0.6560059]
[1719202762107,7.941,125.93,125.89,0.6560059]
[1719202762419,7.9416,125.92,125.89,0.6560059]
[1719202762713,7.9404,125.94,125.9,0.17]
[1719202762898,7.9404,125.94,125.9,0.34]
[1719202763499,7.9421,125.92,125.89,0.6560059]
[1719202763722,7.9423,125.91,125.89,0.6560059]
[1719202764014,6.32,125.99,125.89,0.6560059]
[1719202764015,7.9418,125.92,125.89,0.6560059]
[1719202764190,7.9424,125.91,125.89,0.6560059]
[1719202769035,19.13,125.94,125.91,7.9421]
[1719202769204,7.9397,125.95,125.9,7.9426]
[1719202769521,7.9405,125.94,125.9,7.9426]
[1719202769702,19.13,125.94,125.89,0.8260059]
[1719202769901,7.9409,125.93,125.89,8.5992059]
[1719202770231,27.0698,125.95,125.9,8.1127]
[1719202770424,19.13,125.95,125.9,7.9427]
[1719202771030,27.0699,125.95,125.9,7.9427]
[1719202771223,7.9402,125.94,125.9,7.9427]
[1719202771616,19.13,125.97,125.91,0.17]
[1719202771815,7.9386,125.97,125.91,0.17]
[1719202772015,20.72029692,125.98,125.91,0.17]
[1719202772237,7.9393,125.96,125.91,8.1119]
[1719202772444,7.9398,125.95,125.91,8.1119]
[1719202772748,7.9403,125.94,125.91,0.17]
[1719202772918,7.9416,125.92,125.89,0.6560059]
[1719202773238,7.9411,125.93,125.89,0.6560059]
[1719202773624,7.9417,125.92,125.89,0.6560059]
[1719202774147,7.9428,125.9,125.89,0.6560059]
[1719202774318,7.9418,125.92,125.89,0.6560059]
[1719202774642,22.32,125.96,125.89,0.6560059]
[1719202774825,7.9418,125.92,125.89,0.6560059]
[1719202775016,7.941,125.93,125.89,0.6560059]
[1719202775226,7.9415,125.92,125.89,0.6560059]
[1719202776436,1.59029692,125.95,125.89,0.6560059]
[1719202776626,7.9418,125.92,125.89,0.6560059]
[1719202776936,7.9423,125.91,125.89,0.6560059]
[1719202779732,7.9418,125.92,125.89,0.6560059]
[1719202780241,7.9417,125.92,125.89,0.6560059]
[1719202780756,1.59029692,125.94,125.89,0.6560059]
[1719202780928,7.9428,125.9,125.89,0.6560059]
[1719202783345,7.9424,125.91,125.89,0.6560059]
[1719202783829,7.9417,125.92,125.89,0.6560059]
[1719202784646,7.9411,125.93,125.89,0.6560059]
[1719202784954,7.9405,125.94,125.89,8.5994059]
[1719202785720,7.9406,125.94,125.89,0.6560059]
[1719202785951,7.9406,125.94,125.89,8.5990059]
[1719202786120,1.59029692,125.97,125.89,0.6560059]
[1719202787140,0.17,125.96,125.89,0.6560059]
[1719202787360,7.9428,125.9,125.89,0.6560059]
[1719202787929,24.47089692,125.91,125.85,7.9456]
[1719202788132,24.47089692,125.91,125.8,0.0001]
[1719202788133,22.32,125.88,125.8,0.0001]
[1719202788440,19.8665,125.84,125.8,0.0001]
[1719202788629,1.59029692,125.83,125.8,0.0001]
[1719202789333,7.9484,125.81,125.8,0.0001]
[1719202789533,7.948,125.82,125.8,0.0001]
[1719202789948,7.9472,125.83,125.8,0.0001]
[1719202790460,7.9478,125.82,125.8,0.0001]
[1719202790632,19.8634,125.86,125.8,0.0001]
[1719202791033,19.8634,125.86,125.8,16.5777]
[1719202796753,39.0134,125.86,125.8,24.5266]
[1719202797065,39.0134,125.86,125.81,6.3316]
[1719202798455,19.15,125.86,125.81,6.3316]
[1719202800360,7.9468,125.84,125.81,6.3316]
[1719202803763,7.9462,125.85,125.81,6.3316]
[1719202803971,27.0956,125.86,125.82,0.34]
[1719202804136,7.9456,125.86,125.82,0.34]
[1719202804335,7.9456,125.86,125.82,8.2878]
[1719202805165,7.9448,125.87,125.83,7.947]
[1719202805745,7.9443,125.88,125.84,7.9465]
[1719202806263,20.74029692,125.91,125.82,0.34]
[1719202806566,7.9444,125.88,125.83,7.9469]
[1719202806742,7.9455,125.86,125.82,0.34]
[1719202806941,39.0098,125.89,125.82,0.34]
[1719202807239,7.9459,125.85,125.82,0.34]
[1719202807650,7.9468,125.84,125.81,6.3316]
[1719202808769,7.9462,125.85,125.81,14.2799]
[1719202810241,19.15,125.86,125.83,7.947]
[1719202810469,7.9456,125.86,125.82,8.1177]
[1719202810772,7.9456,125.86,125.83,0.17]
[1719202810968,7.9449,125.87,125.83,0.17]
[1719202811267,7.9441,125.88,125.83,8.1171]
[1719202811568,7.9441,125.88,125.84,8.1164]
[1719202811768,7.9441,125.88,125.84,0.17]
[1719202812249,19.15,125.89,125.84,0.17]
[1719202812450,7.9443,125.88,125.84,8.1165]
[1719202812758,7.947,125.93,125.85,16.0944]
[1719202812954,7.947,125.93,125.86,0.17]
[1719202812955,7.9432,125.9,125.86,0.17]
[1719202813152,21.44439692,125.92,125.85,16.0944]
[1719202813361,7.9437,125.89,125.85,16.0944]
[1719202814254,7.9437,125.89,125.85,24.0402]
[1719202814442,7.943,125.9,125.85,24.0402]
[1719202815265,7.9449,125.87,125.85,16.0944]
[1719202815473,7.9466,125.84,125.82,15.8933]
[1719202815775,7.9462,125.85,125.82,15.8933]
[1719202816275,7.9455,125.86,125.82,15.8933]
[1719202816483,7.9459,125.85,125.82,15.8933]
[1719202816849,7.9456,125.86,125.82,15.8933]
[1719202817368,7.9456,125.86,125.82,23.841]
[1719202817548,7.9456,125.86,125.82,15.8933]
[1719202818067,7.9449,125.87,125.83,7.9469]
[1719202818265,7.9449,125.87,125.82,24.0109]
[1719202818470,7.9453,125.86,125.82,24.0109]
[1719202818775,7.9458,125.86,125.82,16.0633]
[1719202819155,7.9448,125.87,125.82,24.0107]
[1719202819360,7.9448,125.87,125.83,0.17]
[1719202819773,27.0941,125.88,125.83,0.17]
[1719202819977,7.9447,125.87,125.83,0.34]
[1719202820186,19.15,125.9,125.83,0.34]
[1719202820187,19.15,125.9,125.83,8.2869]
[1719202820350,7.9444,125.88,125.83,0.34]
[1719202820678,7.9431,125.9,125.86,7.9452]
[1719202820977,7.9431,125.9,125.85,8.2857]
[1719202821548,7.9431,125.9,125.86,7.9451]
[1719202821745,39.0026,125.93,125.85,0.34]
[1719202821746,7.9435,125.89,125.85,0.34]
[1719202821946,7.9435,125.89,125.84,14.4053]
[1719202822149,19.15,125.88,125.84,6.4593]
[1719202822382,7.9462,125.85,125.82,15.8933]
[1719202824167,7.9455,125.86,125.82,15.8933]
[1719202824484,7.9455,125.86,125.82,23.841]
[1719202824682,7.9449,125.87,125.83,8.2871]
[1719202826479,7.9449,125.87,125.83,0.34]
[1719202826684,7.9465,125.84,125.83,0.17]
[1719202826979,1.59029692,125.89,125.82,15.8933]
[1719202827284,7.9472,125.83,125.82,15.8933]
[1719202827484,15.526,125.9,125.8,6.2337]
[1719202827485,7.9482,125.82,125.8,6.2337]
[1719202828357,7.9484,125.81,125.8,0.0001]
[1719202830982,9.53869692,125.81,125.8,0.0001]
[1719202831174,7.9484,125.81,125.8,0.0001]
[1719202831570,9.53869692,125.81,125.8,0.0001]
[1719202833564,7.9484,125.81,125.8,0.0001]
[1719202833960,11.59029692,125.81,125.78,2.702e-05]
[1719202834174,0.17,125.8,125.65,4.49020361]
[1719202834407,19.15,125.74,125.65,4.49020361]
[1719202834590,1.59029692,125.73,125.72,9.238e-05]
[1719202834759,1.59029692,125.73,125.71,10.74401488]
[1719202836258,1.59029692,125.73,125.71,8.77831488]
[1719202836481,20.74029692,125.75,125.71,8.77831488]
[1719202836662,0.17,125.74,125.71,8.77831488]
[1719202837082,1.98246033,125.74,125.71,8.77831488]
[1719202837264,1.59029692,125.73,125.71,8.77831488]
[1719202837679,0.17,125.72,125.71,8.77831488]
[1719202837881,0.34,125.72,125.71,8.77831488]
[1719202840980,3.529798,125.72,125.71,8.77831488]
[1719202841177,3.189798,125.72,125.71,8.77831488]
[1719202841477,1.81246033,125.74,125.71,8.77831488]
[1719202841875,1.81246033,125.74,125.72,45.0]
[1719202842288,1.81246033,125.74,125.71,8.77831488]
[1719202842595,3.40275725,125.74,125.71,8.77831488]
[1719202843177,1.59029692,125.74,125.71,8.77831488]
[1719202843477,3.189798,125.76,125.71,8.77831488]